fUSD/lending_fUSD_20250823
["ID","MTS","AMOUNT","RATE_DAILY","PERIOD"]
[381008685,1755939057362,-616.22,0.00013972,2]
[381008686,1755939057372,-400.0,0.00013972,2]
[381008687,1755939057382,-708.14,0.00013972,2]
[381008688,1755939057391,-400.0,0.00013972,2]
[381008689,1755939057400,-1000.0,0.00013972,2]
[381008690,1755939057410,-400.0,0.00013972,2]
[381008691,1755939057419,-400.0,0.00013972,2]
[381008692,1755939057428,-401.77148148,0.00013972,2]
[381008693,1755939057438,-400.0,0.00013972,2]
[381008694,1755939057447,-650.54,0.00013972,2]
[381008695,1755939057456,-885.96,0.00013972,2]
[381008696,1755939057465,-437.71,0.00013972,2]
[381008697,1755939057474,-708.36,0.00013972,2]
[381008698,1755939057483,-400.0,0.00013972,2]
[381008699,1755939057492,-400.0,0.00013972,2]
[381008700,1755939057502,-400.0,0.00013972,2]
[381008701,1755939057511,-400.0,0.00013972,2]
[381008702,1755939057520,-400.0,0.00013972,2]
[381008703,1755939057529,-402.25886219,0.00013972,2]
[381008704,1755939057538,-646.95,0.00013972,2]
[381008705,1755939057547,-402.1478795,0.00013972,2]
[381008706,1755939057557,-400.0,0.00013972,2]
[381008707,1755939057566,-767.45,0.00013972,2]
[381008708,1755939057575,-400.0,0.00013972,2]
[381008709,1755939057585,-400.0,0.00013972,2]
[381008710,1755939057594,-593.91,0.00013972,2]
[381008711,1755939057603,-400.0,0.00013972,2]
[381008712,1755939057613,-400.0,0.00013972,2]
[381008713,1755939057622,-400.0,0.00013972,2]
[381008714,1755939057631,-472.39,0.00013972,2]
[381008715,1755939057641,-485.54,0.00013972,2]
[381008716,1755939057650,-400.0,0.00013972,2]
[381008717,1755939057660,-400.0,0.00013972,2]
[381008718,1755939057670,-400.0,0.00013972,2]
[381008719,1755939057680,-517.02,0.00013972,2]
[381008720,1755939057690,-400.0,0.00013972,2]
[381008721,1755939057702,-400.0,0.00013972,2]
[381008722,1755939057712,-400.0,0.00013972,2]
[381008723,1755939057721,-400.0,0.00013972,2]
[381008724,1755939057731,-400.0,0.00013972,2]
[381008725,1755939057743,-400.0,0.00013972,2]
[381008726,1755939057753,-510.43505385,0.00013972,2]
[381008727,1755939057762,-400.0,0.00013972,2]
[381008728,1755939057775,-400.0,0.00013972,2]
[381008729,1755939057785,-400.0,0.00013972,2]
[381008730,1755939057794,-400.0,0.00013972,2]
[381008731,1755939057803,-401.86031723,0.00013972,2]
[381008732,1755939057813,-400.0,0.00013972,2]
[381008733,1755939057822,-400.0,0.00013972,2]
[381008734,1755939057832,-459.2,0.00013972,2]
[381008735,1755939057842,-411.84,0.00013972,2]
[381008736,1755939057851,-1058.0,0.00013972,2]
[381008737,1755939057861,-519.43,0.00013972,2]
[381008738,1755939057871,-433.04,0.00013972,2]
[381008739,1755939057880,-548.51,0.00013972,2]
[381008740,1755939057890,-400.0,0.00013972,2]
[381008741,1755939057899,-400.0,0.00013972,2]
[381008742,1755939057908,-400.0,0.00013972,2]
[381008743,1755939057918,-400.0,0.00013972,2]
[381008744,1755939057927,-594.2,0.00013972,2]
[381008745,1755939057937,-400.0,0.00013972,2]
[381008746,1755939057946,-400.0,0.00013972,2]
[381008747,1755939057956,-400.0,0.00013972,2]
[381008748,1755939057965,-400.0,0.00013972,2]
[381008749,1755939057975,-400.0,0.00013972,2]
[381008750,1755939057984,-400.0,0.00013972,2]
[381008751,1755939057993,-402.32,0.00013972,2]
[381008752,1755939058003,-400.0,0.00013972,2]
[381008753,1755939058012,-417.12,0.00013972,2]
[381008754,1755939058022,-400.0,0.00013972,2]
[381008755,1755939058032,-401.77335521,0.00013972,2]
[381008756,1755939058042,-402.37855004,0.00013972,2]
[381008757,1755939058052,-400.0,0.00013972,2]
[381008758,1755939058062,-870.8,0.00013972,2]
[381008759,1755939058071,-400.0,0.00013972,2]
[381008760,1755939058081,-400.0,0.00013972,2]
[381008761,1755939058090,-400.0,0.00013972,2]
[381008762,1755939058099,-553.23,0.00013972,2]
[381008763,1755939058109,-400.0,0.00013972,2]
[381008764,1755939058119,-400.0,0.00013972,2]
[381008765,1755939058128,-400.0,0.00013972,2]
[381008766,1755939058137,-577.65,0.00013972,2]
[381008767,1755939058147,-400.0,0.00013972,2]
[381008768,1755939058156,-400.0,0.00013972,2]
[381008769,1755939058165,-400.0,0.00013972,2]
[381008770,1755939058175,-400.0,0.00013972,2]
[381008771,1755939058184,-400.0,0.00013972,2]
[381008772,1755939058194,-400.0,0.00013972,2]
[381008773,1755939058203,-579.04,0.00013972,2]
[381008774,1755939058212,-501.15,0.00013972,2]
[381008775,1755939058222,-400.0,0.00013972,2]
[381008776,1755939058232,-400.0,0.00013972,2]
[381008777,1755939058241,-400.0,0.00013972,2]
[381008778,1755939058251,-553.23,0.00013972,2]
[381008779,1755939058260,-967.41,0.00013972,2]
[381008780,1755939058269,-400.0,0.00013972,2]
[381008781,1755939058278,-400.0,0.00013972,2]
[381008782,1755939058288,-585.83,0.00013972,2]
[381008783,1755939058297,-399.76003314,0.00013972,2]
[381008784,1755939058307,-415.75541122,0.00013972,2]
[381008785,1755939058317,-400.0,0.00013972,2]
[381008786,1755939058326,-773.29,0.00013972,2]
[381008787,1755939058335,-899.14,0.00013972,2]
[381008788,1755939058344,-400.0,0.00013972,2]
[381008789,1755939058354,-484.77,0.00013972,2]
[381008790,1755939058363,-400.0,0.00013972,2]
[381008791,1755939058374,-400.0,0.00013972,2]
[381008792,1755939058384,-400.0,0.00013972,2]
[381008793,1755939058393,-400.0,0.00013972,2]
[381008794,1755939058403,-400.0,0.00013972,2]
[381008795,1755939058412,-400.0,0.00013972,2]
[381008796,1755939058422,-400.0,0.00013972,2]
[381008797,1755939058432,-400.0,0.00013972,2]
[381008798,1755939058442,-400.0,0.00013972,2]
[381008799,1755939058451,-400.0,0.00013972,2]
[381008800,1755939058461,-400.0,0.00013972,2]
[381008801,1755939058470,-400.0,0.00013972,2]
[381008802,1755939058479,-400.0,0.00013972,2]
[381008803,1755939058489,-400.0,0.00013972,2]
[381008804,1755939058499,-400.0,0.00013972,2]
[381008805,1755939058509,-400.0,0.00013972,2]
[381008806,1755939058518,-509.56,0.00013972,2]
[381008807,1755939058528,-400.0,0.00013972,2]
[381008808,1755939058538,-810.57,0.00013972,2]
[381008809,1755939058548,-400.0,0.00013972,2]
[381008810,1755939058557,-400.0,0.00013972,2]
[381008811,1755939058566,-236.32,0.00013972,2]
[381008812,1755939058576,-400.0,0.00013972,2]
[381008813,1755939058585,-782.76,0.00013972,2]
[381008814,1755939058595,-400.0,0.00013972,2]
[381008815,1755939058605,-400.0,0.00013972,2]
[381008816,1755939058615,-400.0,0.00013972,2]
[381008817,1755939058626,-555.35,0.00013972,2]
[381008818,1755939058635,-400.0,0.00013972,2]
[381008819,1755939058645,-1061.96,0.00013972,2]
[381008820,1755939058654,-400.0,0.00013972,2]
[381008821,1755939058663,-400.0,0.00013972,2]
[381008822,1755939058673,-400.0,0.00013972,2]
[381008823,1755939058683,-688.6,0.00013972,2]
[381008824,1755939058693,-400.0,0.00013972,2]
[381008825,1755939058708,-400.0,0.00013972,2]
[381008826,1755939058717,-400.0,0.00013972,2]
[381008827,1755939058727,-1035.28,0.00013972,2]
[381008828,1755939058737,-400.0,0.00013972,2]
[381008829,1755939058748,-400.0,0.00013972,2]
[381008830,1755939058757,-400.0,0.00013972,2]
[381008831,1755939058766,-400.0,0.00013972,2]
[381008832,1755939058778,-400.0,0.00013972,2]
[381008833,1755939058788,-615.93,0.00013972,2]
[381008834,1755939058798,-559.08,0.00013972,2]
[381008835,1755939058807,-400.0,0.00013972,2]
[381008836,1755939058816,-400.0,0.00013972,2]
[381008837,1755939058826,-761.04,0.00013972,2]
[381008838,1755939058835,-400.0,0.00013972,2]
[381008839,1755939058844,-400.0,0.00013972,2]
[381008840,1755939058854,-407.06,0.00013972,2]
[381008841,1755939058864,-426.75,0.00013972,2]
[381008842,1755939058874,-780.02,0.00013972,2]
[381008843,1755939058883,-400.0,0.00013972,2]
[381008844,1755939058893,-400.0,0.00013972,2]
[381008845,1755939058903,-400.0,0.00013972,2]
[381008846,1755939058912,-400.0,0.00013972,2]
[381008847,1755939058921,-400.0,0.00013972,2]
[381008848,1755939058930,-400.0,0.00013972,2]
[381008849,1755939058940,-400.0,0.00013972,2]
[381008850,1755939058949,-560.47,0.00013972,2]
[381008851,1755939058958,-708.94,0.00013972,2]
[381008852,1755939058968,-400.0,0.00013972,2]
[381008853,1755939058977,-632.18,0.00013972,2]
[381008854,1755939058986,-634.99,0.00013972,2]
[381008855,1755939058995,-513.36,0.00013972,2]
[381008856,1755939059005,-959.9,0.00013972,2]
[381008857,1755939059014,-400.0,0.00013972,2]
[381008858,1755939059024,-400.0,0.00013972,2]
[381008859,1755939059033,-470.78,0.00013972,2]
[381008860,1755939059042,-400.0,0.00013972,2]
[381008861,1755939059263,-400.0,0.00013972,2]
[381008862,1755939059273,-425.55,0.00013972,2]
[381008863,1755939059283,-915.97,0.00013972,2]
[381008864,1755939059292,-400.0,0.00013972,2]
[381008865,1755939059301,-400.0,0.00013972,2]
[381008866,1755939059311,-623.72,0.00013972,2]
[381008867,1755939059320,-578.23,0.00013972,2]
[381008868,1755939059329,-400.0,0.00013972,2]
[381008869,1755939059338,-400.0,0.00013972,2]
[381008870,1755939059347,-400.0,0.00013972,2]
[381008871,1755939059356,-400.0,0.00013972,2]
[381008872,1755939059365,-576.67,0.00013972,2]
[381008873,1755939059374,-404.26,0.00013972,2]
[381008874,1755939059384,-400.0,0.00013972,2]
[381008875,1755939059393,-604.46,0.00013972,2]
[381008876,1755939059402,-400.0,0.00013972,2]
[381008877,1755939059411,-459.88,0.00013972,2]
[381008878,1755939059420,-488.37,0.00013972,2]
[381008879,1755939059429,-653.05,0.00013972,2]
[381008880,1755939059438,-540.72,0.00013972,2]
[381008881,1755939059448,-400.0,0.00013972,2]
[381008882,1755939059457,-448.68,0.00013972,2]
[381008883,1755939059466,-531.6,0.00013972,2]
[381008884,1755939059475,-182.18374894,0.00013972,2]
[381008885,1755939059485,-713.87,0.00013972,2]
[381008886,1755939059494,-526.18,0.00013972,2]
[381008887,1755939059503,-400.0,0.00013972,2]
[381008888,1755939059512,-629.81,0.00013972,2]
[381008889,1755939059522,-400.0,0.00013972,2]
[381008890,1755939059531,-400.0,0.00013972,2]
[381008891,1755939059540,-400.0,0.00013972,2]
[381008892,1755939059549,-870.69,0.00013972,2]
[381008893,1755939059558,-541.05134497,0.00013972,2]
[381008894,1755939059567,-400.0,0.00013972,2]
[381008895,1755939059576,-400.0,0.00013972,2]
[381008896,1755939059585,-670.57,0.00013972,2]
[381008897,1755939059595,-579.06,0.00013972,2]
[381008898,1755939059604,-400.0,0.00013972,2]
[381008899,1755939059614,-400.0,0.00013972,2]
[381008900,1755939059623,-400.0,0.00013972,2]
[381008901,1755939059632,-400.0,0.00013972,2]
[381008902,1755939059641,-551.87,0.00013972,2]
[381008903,1755939059650,-658.16,0.00013972,2]
[381008904,1755939059659,-683.83,0.00013972,2]
[381008905,1755939059669,-444.96,0.00013972,2]
[381008906,1755939059678,-400.0,0.00013972,2]
[381008907,1755939059687,-400.0,0.00013972,2]
[381008908,1755939059699,-400.0,0.00013972,2]
[381008909,1755939059709,-406.78,0.00013972,2]
[381008910,1755939059718,-408.6367432,0.00013972,2]
[381008911,1755939059727,-759.2,0.00013972,2]
[381008912,1755939059737,-400.0,0.00013972,2]
[381008913,1755939059746,-769.51,0.00013972,2]
[381008914,1755939059756,-400.0,0.00013972,2]
[381008915,1755939059765,-400.0,0.00013972,2]
[381008916,1755939059775,-417.75,0.00013972,2]
[381008917,1755939059785,-400.0,0.00013972,2]
[381008918,1755939059796,-630.54,0.00013972,2]
[381008919,1755939059807,-551.04,0.00013972,2]
[381008920,1755939059816,-441.83,0.00013972,2]
[381008921,1755939059826,-400.0,0.00013972,2]
[381008922,1755939059835,-400.0,0.00013972,2]
[381008923,1755939059844,-400.0,0.00013972,2]
[381008924,1755939059854,-400.0,0.00013972,2]
[381008925,1755939059864,-826.78,0.00013972,2]
[381008926,1755939059873,-863.26,0.00013972,2]
[381008927,1755939059985,-549.02,0.00013972,2]
[381008928,1755939060009,-400.0,0.00013972,2]
[381008929,1755939060019,-663.25,0.00013972,2]
[381008930,1755939060028,-400.0,0.00013972,2]
[381008931,1755939060037,-610.1,0.00013972,2]
[381008932,1755939060048,-400.0,0.00013972,2]
[381008933,1755939060057,-400.0,0.00013972,2]
[381008934,1755939060067,-866.78,0.00013972,2]
[381008935,1755939060077,-400.0,0.00013972,2]
[381008936,1755939060086,-457.29,0.00013972,2]
[381008937,1755939060096,-400.0,0.00013972,2]
[381008938,1755939060105,-624.4,0.00013972,2]
[381008939,1755939060115,-400.0,0.00013972,2]
[381008940,1755939060125,-586.53,0.00013972,2]
[381008941,1755939060134,-400.0,0.00013972,2]
[381008942,1755939060145,-400.0,0.00013972,2]
[381008943,1755939060156,-400.0,0.00013972,2]
[381008944,1755939060166,-648.05,0.00013972,2]
[381008945,1755939060175,-535.11,0.00013972,2]
[381008946,1755939060186,-400.0,0.00013972,2]
[381008947,1755939060205,-400.0,0.00013972,2]
[381008948,1755939060226,-400.0,0.00013972,2]
[381008949,1755939060236,-400.0,0.00013972,2]
[381008950,1755939060246,-484.11,0.00013972,2]
[381008951,1755939060256,-400.0,0.00013972,2]
[381008952,1755939060265,-429.85,0.00013972,2]
[381008953,1755939060275,-857.77,0.00013972,2]
[381008954,1755939060284,-400.0,0.00013972,2]
[381008955,1755939060294,-471.8,0.00013972,2]
[381008956,1755939060304,-400.0,0.00013972,2]
[381008957,1755939060313,-672.25,0.00013972,2]
[381008958,1755939060323,-400.0,0.00013972,2]
[381008959,1755939060333,-515.53,0.00013972,2]
[381008960,1755939060343,-903.05,0.00013972,2]
[381008961,1755939060352,-400.0,0.00013972,2]
[381008962,1755939060362,-400.0,0.00013972,2]
[381008963,1755939060372,-400.0,0.00013972,2]
[381008964,1755939060382,-521.2,0.00013972,2]
[381008965,1755939060391,-636.23,0.00013972,2]
[381008966,1755939060401,-666.16,0.00013972,2]
[381008967,1755939060418,-665.37,0.00013972,2]
[381008968,1755939060432,-375.24743704,0.00013972,2]
[381008969,1755939060442,-400.0,0.00013972,2]
[381008970,1755939060452,-400.0,0.00013972,2]
[381008971,1755939060463,-400.0,0.00013972,2]
[381008972,1755939060473,-505.15,0.00013972,2]
[381008973,1755939060483,-455.9,0.00013972,2]
[381008974,1755939060492,-400.0,0.00013972,2]
[381008975,1755939060502,-796.5,0.00013972,2]
[381008976,1755939060512,-400.0,0.00013972,2]
[381008977,1755939060522,-400.0,0.00013972,2]
[381008978,1755939060532,-567.05,0.00013972,2]
[381008979,1755939060542,-713.57,0.00013972,2]
[381008980,1755939060552,-400.0,0.00013972,2]
[381008981,1755939060561,-400.0,0.00013972,2]
[381008982,1755939060571,-521.54,0.00013972,2]
[381008983,1755939060582,-400.0,0.00013972,2]
[381008984,1755939060592,-621.21,0.00013972,2]
[381008985,1755939060602,-607.82,0.00013972,2]
[381008986,1755939060612,-400.0,0.00013972,2]
[381008987,1755939060622,-634.66,0.00013972,2]
[381008988,1755939060632,-1019.45,0.00013972,2]
[381008989,1755939060642,-402.12698166,0.00013972,2]
[381008990,1755939060657,-586.45,0.00013972,2]
[381008991,1755939060667,-400.0,0.00013972,2]
[381008992,1755939060676,-400.0,0.00013972,2]
[381008993,1755939060686,-539.72,0.00013972,2]
[381008994,1755939060697,-514.65,0.00013972,2]
[381008995,1755939060709,-400.0,0.00013972,2]
[381008996,1755939060719,-1013.56,0.00013972,2]
[381008997,1755939060729,-534.08,0.00013972,2]
[381008998,1755939060739,-585.59,0.00013972,2]
[381008999,1755939060751,-400.0,0.00013972,2]
[381009000,1755939060761,-474.02,0.00013972,2]
[381009001,1755939060772,-664.02,0.00013972,2]
[381009002,1755939060782,-400.0,0.00013972,2]
[381009003,1755939060792,-400.0,0.00013972,2]
[381009004,1755939060801,-400.0,0.00013972,2]
[381009005,1755939060812,-400.0,0.00013972,2]
[381009006,1755939060822,-400.0,0.00013972,2]
[381009007,1755939060832,-726.3,0.00013972,2]
[381009008,1755939060842,-400.0,0.00013972,2]
[381009009,1755939060852,-400.0,0.00013972,2]
[381009010,1755939060862,-517.69841439,0.00013972,2]
[381009011,1755939060872,-400.0,0.00013972,2]
[381009012,1755939060881,-674.06,0.00013972,2]
[381009013,1755939060891,-217.89694401,0.00013972,2]
[381009014,1755939060901,-400.0,0.00013972,2]
[381009015,1755939060911,-979.75,0.00013972,2]
[381009016,1755939060922,-400.0,0.00013972,2]
[381009017,1755939060932,-700.09,0.00013972,2]
[381009018,1755939060942,-400.0,0.00013972,2]
[381009019,1755939060952,-646.88,0.00013972,2]
[381009020,1755939060963,-305.05181913,0.00013972,2]
[381009021,1755939060973,-400.0,0.00013972,2]
[381009022,1755939060984,-400.0,0.00013972,2]
[381009023,1755939060995,-400.0,0.00013972,2]
[381009024,1755939061006,-415.3,0.00013972,2]
[381009025,1755939061018,-620.78,0.00013972,2]
[381009026,1755939061028,-875.1,0.00013972,2]
[381009027,1755939061038,-400.0,0.00013972,2]
[381009028,1755939061048,-843.51,0.00013972,2]
[381009029,1755939061058,-400.0,0.00013972,2]
[381009030,1755939061068,-401.63033676,0.00013972,2]
[381009031,1755939061077,-610.16,0.00013972,2]
[381009032,1755939061087,-915.26,0.00013972,2]
[381009033,1755939061097,-458.39,0.00013972,2]
[381009034,1755939061106,-1649.51,0.00013972,2]
[381009035,1755939061117,-400.0,0.00013972,2]
[381009036,1755939061128,-400.0,0.00013972,2]
[381009037,1755939061137,-519.01,0.00013972,2]
[381009038,1755939061147,-400.0,0.00013972,2]
[381009039,1755939061156,-400.0,0.00013972,2]
[381009040,1755939061166,-510.92,0.00013972,2]
[381009041,1755939061175,-400.0,0.00013972,2]
[381009042,1755939061185,-654.9,0.00013972,2]
[381009043,1755939061195,-400.0,0.00013972,2]
[381009044,1755939061204,-400.0,0.00013972,2]
[381009045,1755939061214,-400.0,0.00013972,2]
[381009046,1755939061224,-782.17,0.00013972,2]
[381009047,1755939061234,-933.04,0.00013972,2]
[381009048,1755939061244,-400.0,0.00013972,2]
[381009049,1755939061254,-842.2,0.00013972,2]
[381009050,1755939061263,-718.14,0.00013972,2]
[381009051,1755939061273,-400.0,0.00013972,2]
[381009052,1755939061283,-400.0,0.00013972,2]
[381009053,1755939061293,-445.25,0.00013972,2]
[381009054,1755939061303,-400.0,0.00013972,2]
[381009055,1755939061313,-400.0,0.00013972,2]
[381009056,1755939061323,-579.35,0.00013972,2]
[381009057,1755939061333,-594.21,0.00013972,2]
[381009058,1755939061343,-400.0,0.00013972,2]
[381009059,1755939061353,-1117.58,0.00013972,2]
[381009060,1755939061363,-726.96,0.00013972,2]
[381009061,1755939061374,-736.11,0.00013972,2]
[381009062,1755939061383,-587.73,0.00013972,2]
[381009063,1755939061393,-755.16,0.00013972,2]
[381009064,1755939061403,-400.0,0.00013972,2]
[381009065,1755939061414,-535.56,0.00013972,2]
[381009066,1755939061424,-494.23,0.00013972,2]
[381009067,1755939061435,-928.82,0.00013972,2]
[381009068,1755939061444,-508.72,0.00013972,2]
[381009069,1755939061455,-569.71,0.00013972,2]
[381009070,1755939061465,-342.48210321,0.00013972,2]
[381009071,1755939061475,-930.32,0.00013972,2]
[381009072,1755939061485,-401.16901348,0.00013972,2]
[381009073,1755939061495,-400.0,0.00013972,2]
[381009074,1755939061504,-400.0,0.00013972,2]
[381009075,1755939061514,-400.0,0.00013972,2]
[381009076,1755939061524,-662.62,0.00013972,2]
[381009077,1755939061534,-400.0,0.00013972,2]
[381009078,1755939061543,-400.0,0.00013972,2]
[381009079,1755939061553,-400.0,0.00013972,2]
[381009080,1755939061563,-400.0,0.00013972,2]
[381009081,1755939061572,-790.37,0.00013972,2]
[381009082,1755939061582,-400.0,0.00013972,2]
[381009083,1755939061592,-400.0,0.00013972,2]
[381009084,1755939061602,-400.0,0.00013972,2]
[381009085,1755939061612,-400.0,0.00013972,2]
[381009086,1755939061622,-541.18,0.00013972,2]
[381009087,1755939061631,-510.79,0.00013972,2]
[381009088,1755939061641,-400.0,0.00013972,2]
[381009089,1755939061651,-1407.45,0.00013972,2]
[381009090,1755939061662,-167.57,0.00013972,2]
[381009091,1755939061672,-437.43,0.00013972,2]
[381009092,1755939061682,-452.78,0.00013972,2]
[381009093,1755939061692,-411.9,0.00013972,2]
[381009094,1755939061705,-400.0,0.00013972,2]
[381009095,1755939061715,-1005.61,0.00013972,2]
[381009096,1755939061725,-995.95,0.00013972,2]
[381009097,1755939061735,-567.71,0.00013972,2]
[381009098,1755939061747,-400.0,0.00013972,2]
[381009099,1755939061756,-1436.18,0.00013972,2]
[381009100,1755939061766,-691.75,0.00013972,2]
[381009101,1755939061777,-400.0,0.00013972,2]
[381009102,1755939061788,-400.0,0.00013972,2]
[381009103,1755939061799,-778.26,0.00013972,2]
[381009104,1755939061810,-708.04,0.00013972,2]
[381009105,1755939061820,-408.35,0.00013972,2]
[381009106,1755939061830,-400.0,0.00013972,2]
[381009107,1755939061840,-400.0,0.00013972,2]
[381009108,1755939061849,-549.96,0.00013972,2]
[381009109,1755939061859,-400.0,0.00013972,2]
[381009110,1755939061869,-460.77,0.00013972,2]
[381009111,1755939061879,-400.0,0.00013972,2]
[381009112,1755939061888,-480.88,0.00013972,2]
[381009113,1755939061898,-400.0,0.00013972,2]
[381009114,1755939061908,-671.12,0.00013972,2]
[381009115,1755939061918,-400.0,0.00013972,2]
[381009116,1755939061928,-400.0,0.00013972,2]
[381009117,1755939061938,-528.45,0.00013972,2]
[381009118,1755939061948,-400.0,0.00013972,2]
[381009119,1755939061958,-2771.96,0.00013972,2]
[381009120,1755939061968,-400.62089626,0.00013972,2]
[381009121,1755939061977,-400.0,0.00013972,2]
[381009122,1755939061987,-400.0,0.00013972,2]
[381009123,1755939061997,-419.21,0.00013972,2]
[381009124,1755939062007,-400.0,0.00013972,2]
[381009125,1755939062017,-400.0,0.00013972,2]
[381009126,1755939062027,-640.9,0.00013972,2]
[381009127,1755939062036,-667.47,0.00013972,2]
[381009128,1755939062047,-400.0,0.00013972,2]
[381009129,1755939062057,-400.0,0.00013972,2]
[381009130,1755939062067,-400.0,0.00013972,2]
[381009131,1755939062078,-578.77,0.00013972,2]
[381009132,1755939062088,-400.0,0.00013972,2]
[381009133,1755939062098,-400.0,0.00013972,2]
[381009134,1755939062108,-726.43,0.00013972,2]
[381009135,1755939062119,-400.0,0.00013972,2]
[381009136,1755939062130,-564.18,0.00013972,2]
[381009137,1755939062140,-400.0,0.00013972,2]
[381009138,1755939062150,-400.0,0.00013972,2]
[381009139,1755939062160,-402.26432016,0.00013972,2]
[381009140,1755939062170,-400.0,0.00013972,2]
[381009141,1755939062179,-548.76,0.00013972,2]
[381009142,1755939062189,-490.16,0.00013972,2]
[381009143,1755939062198,-400.0,0.00013972,2]
[381009144,1755939062209,-400.0,0.00013972,2]
[381009145,1755939062218,-656.35,0.00013972,2]
[381009146,1755939062228,-400.0,0.00013972,2]
[381009147,1755939062237,-400.0,0.00013972,2]
[381009148,1755939062247,-939.03,0.00013972,2]
[381009149,1755939062610,-400.0,0.00013972,2]
[381009150,1755939062622,-871.98,0.00013972,2]
[381009151,1755939062632,-502.64,0.00013972,2]
[381009152,1755939062642,-400.0,0.00013972,2]
[381009153,1755939062652,-446.26,0.00013972,2]
[381009154,1755939062662,-433.79,0.00013972,2]
[381009155,1755939062671,-443.54,0.00013972,2]
[381009156,1755939062681,-747.96,0.00013972,2]
[381009157,1755939062692,-400.0,0.00013972,2]
[381009158,1755939062707,-400.0,0.00013972,2]
[381009159,1755939062717,-559.11,0.00013972,2]
[381009160,1755939062727,-400.0,0.00013972,2]
[381009161,1755939062736,-400.0,0.00013972,2]
[381009162,1755939062746,-642.39,0.00013972,2]
[381009163,1755939062756,-553.29,0.00013972,2]
[381009164,1755939062766,-400.0,0.00013972,2]
[381009165,1755939062777,-400.0,0.00013972,2]
[381009166,1755939062788,-607.93,0.00013972,2]
[381009167,1755939062797,-502.57552503,0.00013972,2]
[381009168,1755939062807,-458.17,0.00013972,2]
[381009169,1755939062816,-400.0,0.00013972,2]
[381009170,1755939062825,-400.0,0.00013972,2]
[381009171,1755939062835,-400.0,0.00013972,2]
[381009172,1755939062845,-834.7,0.00013972,2]
[381009173,1755939062856,-686.13,0.00013972,2]
[381009174,1755939062865,-168.03760851,0.00013972,2]
[381009175,1755939062875,-543.84,0.00013972,2]
[381009176,1755939062885,-497.89,0.00013972,2]
[381009177,1755939062895,-526.83,0.00013972,2]
[381009178,1755939062904,-400.0,0.00013972,2]
[381009179,1755939062914,-648.69,0.00013972,2]
[381009180,1755939062924,-676.25,0.00013972,2]
[381009181,1755939062933,-492.19,0.00013972,2]
[381009182,1755939062943,-766.06,0.00013972,2]
[381009183,1755939062952,-698.93,0.00013972,2]
[381009184,1755939062963,-1012.0,0.00013972,2]